fUSD/lending_fUSD_20260131
["ID","MTS","AMOUNT","RATE_DAILY","PERIOD"]
[404149233,1769881394523,-500.0,0.00012373,2]
[404149234,1769881394549,-500.0,0.00012373,2]
[404149235,1769881394577,-99.13164871,0.00012373,2]
[404149248,1769881416559,338.87768108,0.00043498,120]
[404149367,1769881510333,260.0,0.000101,2]
[404149404,1769881602948,685.11489639,0.00043498,30]
[404149435,1769881673412,-199.79100817,0.00012273,2]
[404149436,1769881673436,-250.0,0.00012323,2]
[404149437,1769881673461,-1550.20899183,0.00012373,2]
[404149446,1769881732069,-199.79100817,0.00012363,2]
[404149447,1769881732104,-1000.20899183,0.00012373,2]
[404149482,1769881810970,3000.0,0.00043501,120]
[404149483,1769881811206,3000.0,0.00043501,120]
[404149498,1769881831931,-544.63899374,0.00012373,2]
[404149499,1769881831942,-250.0,0.00012418,2]
[404149500,1769881831953,-151.06,0.00012463,2]
[404149501,1769881831963,-166.66,0.00012488,2]
[404149502,1769881831972,-152.71796878,0.00012547,2]
[404149503,1769881831982,-976.58207334,0.00012693,2]
[404149504,1769881831998,-271.90586894,0.00012693,2]
[404149505,1769881832010,-382.70495772,0.00012693,2]
[404149506,1769881832020,-565.60716792,0.00012693,2]
[404149507,1769881832029,-166.66,0.00012736,2]
[404149508,1769881832039,-1873.30457179,0.00012783,2]
[404149509,1769881832048,-300.0,0.00012791,2]
[404149510,1769881832058,-500.0,0.00012792,2]
[404149511,1769881832067,-222.53338828,0.00012792,2]
[404149512,1769881832077,-263.86471902,0.00012792,2]
[404149513,1769881832086,-500.0,0.00012792,2]
[404149514,1769881832096,-617.36705395,0.00012792,2]
[404149515,1769881832105,-500.0,0.00012792,2]
[404149516,1769881832116,-600.4961905,0.00012792,2]
[404149517,1769881832127,-500.0,0.00012792,2]
[404149518,1769881832136,-500.0,0.00012792,2]
[404149519,1769881832145,-933.69225346,0.00012792,2]
[404149521,1769881832155,-175.69975447,0.00012792,2]
[404149523,1769881832165,-933.69225346,0.00012792,2]
[404149525,1769881832174,-500.0,0.00012792,2]
[404149528,1769881832185,-500.0,0.00012792,2]
[404149530,1769881832195,-933.69225346,0.00012792,2]
[404149532,1769881832204,-559.53488893,0.00012792,2]
[404149533,1769881832214,-933.69225346,0.00012792,2]
[404149535,1769881832224,-254.10007489,0.00012792,2]
[404149537,1769881832234,-933.69225346,0.00012792,2]
[404149539,1769881832244,-933.69225346,0.00012792,2]
[404149540,1769881832253,-933.69225346,0.00012792,2]
[404149542,1769881832263,-933.69225346,0.00012792,2]
[404149544,1769881832272,-933.69225346,0.00012792,2]
[404149546,1769881832281,-933.69225346,0.00012792,2]
[404149548,1769881832290,-933.69225346,0.00012792,2]
[404149550,1769881832299,-933.69225346,0.00012792,2]
[404149552,1769881832309,-933.69225346,0.00012792,2]
[404149554,1769881832318,-933.69225346,0.00012792,2]
[404149556,1769881832327,-933.69225346,0.00012792,2]
[404149558,1769881832336,-933.69225346,0.00012792,2]
[404149560,1769881832346,-933.69225346,0.00012792,2]
[404149562,1769881832355,-933.69225346,0.00012792,2]
[404149564,1769881832365,-933.69225346,0.00012792,2]
[404149566,1769881832375,-933.69225346,0.00012792,2]
[404149569,1769881832384,-933.69225346,0.00012792,2]
[404149571,1769881832394,-933.69225346,0.00012792,2]
[404149574,1769881832403,-933.69225346,0.00012792,2]
[404149577,1769881832412,-933.69225346,0.00012792,2]
[404149580,1769881832422,-933.69225346,0.00012792,2]
[404149583,1769881832431,-933.69225346,0.00012792,2]
[404149586,1769881832440,-933.69225346,0.00012792,2]
[404149588,1769881832449,-933.69225346,0.00012792,2]
[404149589,1769881832458,-933.69225346,0.00012792,2]
[404149591,1769881832467,-933.69225346,0.00012792,2]
[404149593,1769881832478,-933.69225346,0.00012792,2]
[404149595,1769881832487,-933.69225346,0.00012792,2]
[404149597,1769881832495,-933.69225346,0.00012792,2]
[404149599,1769881832504,-933.69225346,0.00012792,2]
[404149600,1769881832514,-933.69225346,0.00012792,2]
[404149601,1769881832523,-933.69225346,0.00012792,2]
[404149602,1769881832533,-933.69225346,0.00012792,2]
[404149603,1769881832544,-933.69225346,0.00012792,2]
[404149604,1769881832554,-933.69225346,0.00012792,2]
[404149605,1769881832563,-933.69225346,0.00012792,2]
[404149606,1769881832574,-933.69225346,0.00012792,2]
[404149607,1769881832593,-933.69225346,0.00012792,2]
[404149608,1769881832603,-933.69225346,0.00012792,2]
[404149609,1769881832615,-933.69225346,0.00012792,2]
[404149610,1769881832624,-933.69225346,0.00012792,2]
[404149611,1769881832634,-933.69225346,0.00012792,2]
[404149612,1769881832644,-933.69225346,0.00012792,2]
[404149613,1769881832654,-933.69225346,0.00012792,2]
[404149614,1769881832664,-933.69225346,0.00012792,2]
[404149615,1769881832673,-933.69225346,0.00012792,2]
[404149616,1769881832683,-933.69225346,0.00012792,2]
[404149617,1769881832692,-933.69225346,0.00012792,2]
[404149618,1769881832703,-933.69225346,0.00012792,2]
[404149619,1769881832713,-933.69225346,0.00012792,2]
[404149620,1769881832723,-933.69225346,0.00012792,2]
[404149621,1769881832733,-933.69225346,0.00012792,2]
[404149622,1769881832742,-933.69225346,0.00012792,2]
[404149623,1769881832752,-933.69225346,0.00012792,2]
[404149624,1769881832761,-933.69225346,0.00012792,2]
[404149625,1769881832770,-933.69225346,0.00012792,2]
[404149626,1769881832780,-1561.25709113,0.00012792,2]
[404149627,1769881832790,-1561.25709113,0.00012792,2]
[404149628,1769881832799,-1561.25709113,0.00012792,2]
[404149629,1769881832809,-1561.25709113,0.00012792,2]
[404149630,1769881832818,-1561.25709113,0.00012792,2]
[404149631,1769881832828,-1561.25709113,0.00012792,2]
[404149632,1769881832837,-1561.25709113,0.00012792,2]
[404149633,1769881832847,-1561.25709113,0.00012792,2]
[404149634,1769881832856,-1561.25709113,0.00012792,2]
[404149635,1769881832866,-1561.25709113,0.00012792,2]
[404149636,1769881832876,-1561.25709113,0.00012792,2]
[404149637,1769881832885,-1561.25709113,0.00012792,2]
[404149638,1769881832894,-1561.25709113,0.00012792,2]
[404149639,1769881832904,-1561.25709113,0.00012792,2]
[404149640,1769881832913,-1561.25709113,0.00012792,2]
[404149641,1769881832923,-1561.25709113,0.00012792,2]
[404149642,1769881832932,-1561.25709113,0.00012792,2]
[404149643,1769881832942,-1561.25709113,0.00012792,2]
[404149644,1769881832952,-1561.25709113,0.00012792,2]
[404149645,1769881832961,-1561.25709113,0.00012792,2]
[404149646,1769881832975,-1561.25709113,0.00012792,2]
[404149647,1769881832984,-1561.25709113,0.00012792,2]
[404149648,1769881832994,-1561.25709113,0.00012792,2]
[404149649,1769881833003,-1561.25709113,0.00012792,2]
[404149650,1769881833013,-1561.25709113,0.00012792,2]
[404149651,1769881833023,-1561.25709113,0.00012792,2]
[404149652,1769881833034,-1561.25709111,0.00012792,2]
[404149653,1769881833044,-150.0,0.00012792,2]
[404149654,1769881833054,-268.92,0.00012792,2]
[404149655,1769881833064,-52664.43501915,0.00012793,2]
[404149656,1769881833078,-466.8805585,0.00012793,2]
[404149657,1769881833098,-576.06087263,0.00012793,2]
[404149663,1769881838007,-353.97119535,0.00012793,2]
[404149664,1769881838019,-473.208,0.00012793,2]
[404149679,1769881838411,-7874.03772923,0.00012793,2]
[404149681,1769881838423,-493835.62822986,0.00012793,2]
[404149683,1769881838435,-405.07587956,0.00012793,2]
[404149688,1769881838448,-2892.71032087,0.00012793,2]
[404149692,1769881838458,-267.22596491,0.00012793,2]
[404149695,1769881838471,-301.96619869,0.00012793,2]
[404149697,1769881838482,-258.6,0.00012793,2]
[404149699,1769881838493,-383.736,0.00012793,2]
[404149702,1769881838505,-2396.67585199,0.00012793,2]
[404149704,1769881838515,-6444.74514281,0.00012793,2]
[404149706,1769881838527,-15733.19999999,0.00012793,2]
[404149869,1769881840079,-19616.83797803,0.00012793,2]
[404149871,1769881840091,-39814.4009966,0.00012793,2]
[404149892,1769881840290,-312499.47476183,0.00012793,2]
[404149895,1769881840301,-11241.31075363,0.00012793,2]
[404149897,1769881840310,-151.0,0.00012885,2]
[404149899,1769881840319,-151.0,0.00012885,2]
[404149900,1769881840327,-151.0,0.00012885,2]
[404149901,1769881840336,-151.0,0.00012885,2]
[404149902,1769881840345,-151.0,0.00012885,2]
[404149903,1769881840354,-151.0,0.00012885,2]
[404149904,1769881840362,-151.0,0.00012885,2]
[404149905,1769881840371,-223.13740117,0.00012885,2]
[404149906,1769881840382,-1222.04,0.00012893,2]
[404149907,1769881840392,-4791.71,0.00012893,2]
[404149908,1769881840402,-150.99,0.00012893,2]
[404149909,1769881840411,-61087.66,0.00012893,2]
[404149910,1769881840420,-2920.91,0.00012893,2]
[404149912,1769881840429,-999.99,0.00012893,2]
[404149914,1769881840438,-299.99,0.00012893,2]
[404149916,1769881840447,-1784.34,0.00012893,2]
[404149918,1769881840457,-4268.5,0.00012893,2]
[404149920,1769881840466,-499.99,0.00012893,2]
[404149922,1769881840475,-9999.99,0.00012893,2]
[404149924,1769881840484,-166.66,0.00012983,2]
[404149926,1769881840494,-150.99,0.00012983,2]
[404149928,1769881840503,-9999.99,0.00012983,2]
[404149930,1769881840512,-9999.99,0.00012983,2]
[404149932,1769881840521,-13826.21,0.00012983,2]
[404149934,1769881840535,-1182.23,0.00012983,2]
[404149936,1769881840544,-155.78,0.00013024,2]
[404149938,1769881840554,-500.0,0.00013066,2]
[404149940,1769881840562,-268.92,0.00013066,2]
[404149942,1769881840572,-500.0,0.00013225,2]
[404149944,1769881840581,-268.92,0.0001334,2]
[404149946,1769881840591,-3837.13060582,0.00013392,2]
[404149948,1769881840601,-3240.0,0.00013425,2]
[404149950,1769881840611,-250.0,0.0001361,2]
[404149952,1769881840620,-250.0,0.0001361,2]
[404149954,1769881840632,-268.92,0.00013614,2]
[404149956,1769881840641,-500.0,0.00013698,2]
[404149958,1769881840651,-500.0,0.00013698,2]
[404149960,1769881840661,-500.0,0.00013698,2]
[404149962,1769881840670,-500.0,0.00013698,2]
[404149964,1769881840679,-500.0,0.00013698,2]
[404149966,1769881840688,-500.0,0.00013698,2]
[404149968,1769881840697,-540.69,0.00013699,2]
[404149970,1769881840706,-179.25,0.000137,2]
[404149972,1769881840715,-179.25,0.000137,2]
[404149974,1769881840724,-179.25,0.000137,2]
[404149976,1769881840734,-179.25,0.000137,2]
[404149978,1769881840743,-268.92,0.00013888,2]
[404149980,1769881840753,-332.52035645,0.00013903,2]
[404149982,1769881840763,-500.0,0.00013903,2]
[404149984,1769881840772,-420.0,0.0001403,2]
[404149986,1769881840781,-2282.19,0.00014325,2]
[404149988,1769881840791,-155.78,0.00014327,2]
[404149990,1769881840799,-540.69,0.00014384,2]
[404149992,1769881840809,-160.39,0.0001441,2]
[404149994,1769881840818,-6880.85,0.00014577,2]
[404149996,1769881840828,-1463.4,0.00014874,2]
[404149998,1769881840837,-1640.50958568,0.00014933,2]
[404150000,1769881840846,-250.0,0.00015,2]
[404150002,1769881840856,-540.69,0.00015068,2]
[404150004,1769881840865,-344.123,0.0001511,2]
[404150006,1769881840874,-500.0,0.00015309,2]
[404150008,1769881840883,-500.0,0.00015309,2]
[404150010,1769881840892,-587.0,0.0001539,2]
[404150012,1769881840901,-155.78,0.00015629,2]
[404150014,1769881840910,-12937.34,0.00015668,2]
[404150016,1769881840920,-540.69,0.00015753,2]
[404150018,1769881840929,-1000.0,0.00015918,2]
[404150020,1769881840938,-150.0,0.00015977,2]
[404150022,1769881840947,-9999.99,0.00016116,2]
[404150024,1769881840956,-378.0,0.00016118,2]
[404150026,1769881840965,-11241.31075358,0.0001617,2]
[404150028,1769881840974,-554.90775112,0.00016199,2]
[404150030,1769881840983,-160.39,0.00016211,2]
[404150032,1769881840992,-308.89582268,0.00016349,2]
[404150034,1769881841002,-500.0,0.00016373,2]
[404150036,1769881841011,-500.0,0.00016373,2]
[404150038,1769881841020,-500.0,0.00016373,2]
[404150040,1769881841029,-500.0,0.00016373,2]
[404150042,1769881841038,-500.0,0.00016373,2]
[404150044,1769881841047,-166.37398015,0.00016437,2]
[404150046,1769881841056,-210.93089075,0.00016438,2]
[404150048,1769881841065,-500.0,0.00016438,2]
[404150050,1769881841074,-500.0,0.00016438,2]
[404150052,1769881841084,-500.0,0.00016438,2]
[404150054,1769881841093,-500.0,0.00016438,2]
[404150056,1769881841103,-500.0,0.00016438,2]
[404150058,1769881841112,-500.0,0.00016438,2]
[404150060,1769881841121,-500.0,0.00016438,2]
[404150062,1769881841131,-500.0,0.00016438,2]
[404150064,1769881841140,-500.0,0.00016438,2]
[404150066,1769881841149,-500.0,0.00016438,2]
[404150068,1769881841157,-410.37818699,0.00016438,2]
[404150070,1769881841166,-500.0,0.00016438,2]
[404150072,1769881841175,-500.0,0.00016438,2]
[404150074,1769881841184,-500.0,0.00016438,2]
[404150076,1769881841193,-500.0,0.00016438,2]
[404150078,1769881841202,-500.0,0.00016438,2]
[404150080,1769881841211,-500.0,0.00016438,2]
[404150082,1769881841220,-500.0,0.00016438,2]
[404150084,1769881841229,-500.0,0.00016438,2]
[404150086,1769881841238,-500.0,0.00016438,2]
[404150088,1769881841247,-500.0,0.00016438,2]
[404150090,1769881841257,-500.0,0.00016438,2]
[404150092,1769881841266,-500.0,0.00016438,2]
[404150094,1769881841275,-500.0,0.00016438,2]
[404150096,1769881841284,-500.0,0.00016438,2]
[404150098,1769881841293,-500.0,0.00016438,2]
[404150100,1769881841302,-500.0,0.00016438,2]
[404150102,1769881841311,-500.0,0.00016438,2]
[404150104,1769881841321,-500.0,0.00016438,2]
[404150106,1769881841330,-193.40368285,0.00016438,2]
[404150108,1769881841339,-500.0,0.00016438,2]
[404150110,1769881841350,-500.0,0.00016438,2]
[404150112,1769881841360,-500.0,0.00016438,2]
[404150114,1769881841369,-500.0,0.00016438,2]
[404150116,1769881841380,-500.0,0.00016438,2]
[404150118,1769881841389,-500.0,0.00016438,2]
[404150120,1769881841399,-500.0,0.00016438,2]
[404150122,1769881841409,-500.0,0.00016438,2]
[404150125,1769881841420,-500.0,0.00016438,2]
[404150127,1769881841431,-500.0,0.00016438,2]
[404150129,1769881841441,-500.0,0.00016438,2]
[404150131,1769881841450,-500.0,0.00016438,2]
[404150133,1769881841459,-500.0,0.00016438,2]
[404150135,1769881841468,-500.0,0.00016438,2]
[404150137,1769881841477,-500.0,0.00016438,2]
[404150139,1769881841487,-500.0,0.00016438,2]
[404150141,1769881841497,-500.0,0.00016438,2]
[404150143,1769881841505,-540.69,0.00016438,2]
[404150145,1769881841515,-1000.0,0.00016515,2]
[404150147,1769881841523,-838.0,0.0001672,2]
[404150149,1769881841534,-1463.4,0.00016733,2]
[404150151,1769881841545,-823.0,0.00016881,2]
[404150153,1769881841556,-378.0,0.00016886,2]
[404150155,1769881841566,-1000.0,0.00016921,2]
[404150157,1769881841575,-373.99795939,0.00016921,2]
[404150159,1769881841584,-500.0,0.00016921,2]
[404150161,1769881841594,-516.45192786,0.00016921,2]
[404150163,1769881841603,-500.0,0.00016921,2]
[404150165,1769881841614,-378.0,0.00016925,2]
[404150167,1769881841624,-3474.976,0.00016928,2]
[404150169,1769881841633,-238.929,0.00016928,2]
[404150171,1769881841642,-1000.0,0.00017112,2]
[404150172,1769881841651,-421.88469562,0.00017153,2]
[404150174,1769881841660,-1500.0,0.00017468,2]
[404150177,1769881841669,-7073.7348585,0.00017578,2]
[404150179,1769881841679,-1500.0,0.000176,2]
[404150180,1769881841688,-2287.0,0.0001762,2]
[404150182,1769881841697,-2287.0,0.00017626,2]
[404150184,1769881841707,-206.42404466,0.0001764,2]
[404150186,1769881841716,-2287.0,0.00017647,2]
[404150188,1769881841725,-500.0,0.00017663,2]
[404150190,1769881841734,-39505.3308813,0.00017664,2]
[404150192,1769881841743,-3027.5866741,0.00017664,2]
[404150194,1769881841752,-887.2355585,0.00017664,2]
[404150196,1769881841762,-302.0000001,0.00017664,2]
[404150198,1769881841771,-179.0,0.0001768,2]
[404150200,1769881841780,-150.0,0.00017699,2]
[404150202,1769881841789,-150.0,0.00017699,2]
[404150205,1769881841798,-150.0,0.00017699,2]
[404150207,1769881841808,-150.0,0.00017699,2]
[404150209,1769881841817,-500.0,0.00017699,2]
[404150211,1769881841827,-500.0,0.00017699,2]
[404150213,1769881841836,-150.0,0.00017699,2]
[404150215,1769881841846,-150.0,0.00017699,2]
[404150217,1769881841855,-156.49262125,0.00017699,2]
[404150219,1769881841865,-150.0,0.00017699,2]
[404150221,1769881841874,-150.0,0.00017699,2]
[404150223,1769881841883,-500.0,0.00017699,2]
[404150225,1769881841892,-150.0,0.00017699,2]
[404150227,1769881841901,-150.0,0.00017699,2]
[404150229,1769881841911,-250.0,0.00017699,2]
[404150231,1769881841919,-500.0,0.00017699,2]
[404150233,1769881841929,-1000.0,0.00017709,2]
[404150235,1769881841939,-200.0,0.00017754,2]
[404150237,1769881841948,-150.0,0.00017754,2]
[404150239,1769881841957,-150.0,0.00017754,2]
[404150241,1769881841967,-150.0,0.00017754,2]
[404150243,1769881841976,-500.0,0.00017754,2]
[404150245,1769881841985,-537.74266754,0.00017754,2]
[404150247,1769881841994,-150.0,0.00017754,2]
[404150249,1769881842003,-202.27114537,0.00017754,2]
[404150251,1769881842012,-150.0,0.00017754,2]
[404150253,1769881842021,-500.0,0.00017754,2]
[404150255,1769881842030,-150.0,0.00017754,2]
[404150257,1769881842040,-150.0,0.00017754,2]
[404150259,1769881842049,-500.0,0.00017754,2]
[404150261,1769881842058,-1095.26452472,0.00017769,2]
[404150263,1769881842067,-2890.42040952,0.00017769,2]
[404150265,1769881842076,-5099.04421486,0.00017769,2]
[404150267,1769881842085,-228.45714762,0.00017809,2]
[404150269,1769881842094,-150.0,0.00017809,2]
[404150271,1769881842103,-272.0,0.00017809,2]
[404150273,1769881842113,-400.0,0.00017809,2]
[404150275,1769881842122,-500.0,0.00017809,2]
[404150277,1769881842132,-150.0,0.00017809,2]
[404150279,1769881842141,-300.0,0.00017809,2]
[404150281,1769881842151,-666.66666,0.0001782,2]
[404150283,1769881842160,-666.66667,0.0001782,2]
[404150285,1769881842169,-2287.0,0.00017853,2]
[404150287,1769881842180,-150.0,0.00017863,2]
[404150289,1769881842190,-500.0,0.00017863,2]
[404150291,1769881842199,-150.0,0.00017863,2]
[404150293,1769881842208,-16191.95909044,0.00017873,2]
[404150295,1769881842217,-481.60584684,0.000179,2]
[404150297,1769881842226,-10000.0,0.000179,2]
[404150299,1769881842235,-1025.9145602,0.000179,2]
[404150301,1769881842244,-220.12275018,0.000179,2]
[404150303,1769881842253,-3097.17691206,0.000179,2]
[404150305,1769881842263,-500.0,0.000179,2]
[404150307,1769881842271,-500.0,0.000179,2]
[404150309,1769881842280,-500.0,0.000179,2]
[404150311,1769881842290,-500.0,0.000179,2]
[404150313,1769881842298,-500.0,0.000179,2]
[404150315,1769881842308,-500.0,0.000179,2]
[404150317,1769881842317,-500.0,0.000179,2]
[404150319,1769881842326,-500.0,0.000179,2]
[404150321,1769881842335,-500.0,0.000179,2]
[404150323,1769881842344,-500.0,0.000179,2]
[404150325,1769881842353,-500.0,0.000179,2]
[404150327,1769881842365,-500.0,0.000179,2]
[404150329,1769881842376,-500.0,0.000179,2]
[404150331,1769881842385,-500.0,0.000179,2]
[404150333,1769881842393,-500.0,0.000179,2]
[404150335,1769881842402,-500.0,0.000179,2]
[404150337,1769881842412,-500.0,0.000179,2]
[404150339,1769881842421,-500.0,0.000179,2]
[404150341,1769881842430,-500.0,0.000179,2]
[404150343,1769881842439,-500.0,0.000179,2]
[404150345,1769881842448,-500.0,0.000179,2]
[404150347,1769881842458,-500.0,0.000179,2]
[404150349,1769881842467,-500.0,0.000179,2]
[404150351,1769881842477,-235.9326211,0.000179,2]
[404150353,1769881842486,-150.0,0.00017918,2]
[404150355,1769881842495,-300.0,0.00017918,2]
[404150357,1769881842505,-150.0,0.00017918,2]
[404150359,1769881842514,-500.0,0.00017962,2]
[404150361,1769881842524,-434.36904423,0.00017962,2]
[404150362,1769881842534,-500.0,0.00017973,2]
[404150364,1769881842546,-150.2937682,0.00017973,2]
[404150366,1769881842556,-500.0,0.00017973,2]
[404150368,1769881842565,-500.0,0.00017973,2]
[404150370,1769881842575,-502.15998223,0.00017973,2]
[404150373,1769881842586,-500.0,0.00017973,2]
[404150374,1769881842595,-500.0,0.00017973,2]
[404150376,1769881842605,-500.0,0.00017973,2]
[404150379,1769881842615,-500.0,0.00017973,2]
[404150381,1769881842627,-500.0,0.00017973,2]
[404150383,1769881842637,-500.0,0.00017973,2]
[404150384,1769881842647,-500.0,0.00017973,2]
[404150387,1769881842657,-500.5347476,0.00017973,2]
[404150389,1769881842667,-500.0,0.00017973,2]
[404150391,1769881842676,-500.0,0.00017973,2]
[404150393,1769881842686,-500.0,0.00017973,2]
[404150395,1769881842695,-500.0,0.00017973,2]
[404150397,1769881842704,-500.0,0.00017973,2]
[404150399,1769881842714,-500.0,0.00017973,2]
[404150401,1769881842723,-515.88206341,0.00017973,2]
[404150403,1769881842733,-500.0,0.00017973,2]
[404150405,1769881842742,-500.0,0.00017973,2]
[404150407,1769881842751,-584.86466262,0.00017973,2]
[404150409,1769881842760,-500.0,0.00017973,2]
[404150412,1769881842770,-514.38936739,0.00017973,2]
[404150415,1769881842779,-503.45670612,0.00017973,2]
[404150418,1769881842788,-500.0,0.00017973,2]
[404150422,1769881842798,-500.0,0.00017973,2]
[404150425,1769881842807,-500.0,0.00017973,2]
[404150428,1769881842816,-500.0,0.00017973,2]
[404150430,1769881842827,-500.0,0.00017973,2]
[404150432,1769881842836,-500.0,0.00017973,2]
[404150434,1769881842846,-185.00968498,0.00017973,2]
[404150436,1769881842855,-289.92758812,0.00017973,2]
[404150438,1769881842865,-500.0,0.00017973,2]
[404150440,1769881842874,-500.0,0.00017973,2]
[404150441,1769881842884,-500.0,0.00017973,2]
[404150443,1769881842894,-500.0,0.00017973,2]
[404150445,1769881842903,-500.0,0.00017973,2]
[404150448,1769881842914,-250.0,0.00017973,2]
[404150450,1769881842923,-250.0,0.00017973,2]
[404150452,1769881842933,-2000.0,0.00017973,2]
[404150454,1769881842942,-272.39317181,0.00017999,2]
[404150456,1769881842951,-1414.97164756,0.00017999,5]
[404150458,1769881842960,-1863.66216343,0.00017999,2]
[404150460,1769881842969,-500.0,0.00017999,2]
[404150462,1769881842978,-500.0,0.00017999,2]
[404150464,1769881842987,-394.32,0.00017999,2]
[404150466,1769881842997,-6588.0,0.00018,2]
[404150468,1769881843006,-144408.58672173,0.00018,2]
[404150481,1769881843165,-1704.9014391,0.00018,2]
[404150482,1769881843176,-1122.79117385,0.00018,2]
[404150488,1769881843257,-517950.00004068,0.00018,2]
[404150531,1769881843552,-405.44999994,0.00018,2]
[404150562,1769881843799,-2.19359107,0.00018,2]
[404150565,1769881843811,-7891.96913317,0.00018,2]
[404150616,1769881844291,-3163.41688864,0.00018,2]
[404150618,1769881844303,-300.790192,0.00018,2]
[404150795,1769881846038,-5151.95513027,0.00018,2]
[404150812,1769881846194,-395.01875047,0.00018,2]
[404150883,1769881846873,-30.7152174,0.00018,2]
[404150885,1769881846889,-595.425,0.00018,2]
[404150887,1769881846900,-881.30195248,0.00018,2]
[404150890,1769881846911,-437.8849993,0.00018,2]
[404151586,1769881949439,1414.97164756,0.00012691,3]
[404151630,1769882153041,-890.0,0.00012592,2]
[404151654,1769882397784,-172.1193364,0.00012591,2]
[404151655,1769882397811,-344.123,0.00012592,2]
[404151656,1769882397844,-483.7576636,0.00012592,2]
[404151787,1769882548744,-16.2423364,0.00012592,2]
[404151788,1769882548774,-1610.0,0.00012592,2]
[404151789,1769882548802,-250.0,0.00012637,2]
[404151790,1769882548831,-939.926375,0.00012682,2]
[404151791,1769882548865,-184.70530331,0.00012691,2]
[404151792,1769882548898,-500.0,0.00012691,2]
[404151793,1769882548929,-500.0,0.00012691,2]
[404151794,1769882548960,-500.0,0.00012691,2]
[404151795,1769882548990,-498.26197058,0.00012691,2]
[404151796,1769882549126,-1.73802942,0.00012691,2]
[404151797,1769882557205,-10000.01,0.00012592,2]
[404151812,1769882644907,-150.0,0.00012591,2]
[404151813,1769882644936,-150.0,0.00012591,2]
[404151814,1769882644965,-300.0,0.00012591,2]
[404151815,1769882645027,-8800.01,0.00012592,2]
[404151820,1769882654564,-10000.01,0.00012592,2]
[404151829,1769882704380,-300.0,0.00012591,2]
[404151830,1769882704413,-3851.98797771,0.00012592,2]
[404151847,1769882806087,-300.0,0.0001259,2]
[404151848,1769882806134,-9400.01,0.00012591,2]
[404151851,1769882814287,-1128.9172638,0.00012591,2]
[404151852,1769882814315,-7742.1754724,0.00012591,2]
[404151857,1769882869839,-150.0,0.00012591,2]
[404151861,1769882881905,300.0,0.00012591,2]
[404151862,1769882896806,5059.112736,0.00012528,2]
[404151863,1769882903630,4340.897264,0.0001259,2]
[404151864,1769882903654,7665.16304961,0.0001259,2]
[404151865,1769882941905,300.0,0.00012591,2]
[404151866,1769882961394,150.0,0.00043498,120]
[404151868,1769883001536,300.0,0.00012591,2]
[404152090,1769883032147,-1060.92728506,0.00012592,2]
[404152091,1769883032202,-1342.64096061,0.00012592,2]
[404152092,1769883032213,-2773.96661148,0.00012592,2]
[404152093,1769883032257,-477.97880591,0.00012592,2]
[404152094,1769883032269,-1794.47750331,0.00012592,2]
[404152095,1769883032282,-282.33286881,0.00012592,2]
[404152096,1769883032293,-2010.45162671,0.00012592,2]
[404152097,1769883032316,-1134.87678082,0.00012592,2]
[404152099,1769883032327,-865.0,0.00012592,2]
[404152102,1769883032338,-344.81,0.00012592,2]
[404152104,1769883032349,-6374.08985714,0.00012592,2]
[404152106,1769883032359,-824.83,0.00012592,2]
[404152157,1769883038281,-100064.00148711,0.00012592,2]
[404152158,1769883038388,-343015.19263533,0.00012592,2]
[404152159,1769883038398,-1000.0,0.0001269,2]